fUST/lending_fUST_20240930
["ID","MTS","AMOUNT","RATE_DAILY","PERIOD"]
[339501603,1727651441005,-409.93590638,0.00015285,2]
[339501604,1727651441015,-61606.66383689,0.00015285,2]
[339501605,1727651441025,-46229.0069068,0.00015285,2]
[339501606,1727651441035,-54574.8438546,0.00015285,2]
[339501607,1727651441045,-2758.272697,0.0001529,2]
[339501608,1727651441055,-2758.272697,0.0001529,2]
[339501609,1727651441066,-1482.50804,0.0001529,2]
[339501610,1727651441077,-46229.0069068,0.0001529,2]
[339501611,1727651441088,-29571.9844639,0.0001529,2]
[339501612,1727651441101,-25002.8593907,0.0001529,2]
[339501613,1727651441113,-14358.76581655,0.00015295,2]
[339501614,1727651441123,-2758.272697,0.00015295,2]
[339501615,1727651441135,-2758.272697,0.00015295,2]
[339501616,1727651441146,-1482.50804,0.00015295,2]
[339501617,1727651441157,-150.112233,0.000153,2]
[339501618,1727651441167,-150.112233,0.000153,2]
[339501619,1727651441178,-150.112233,0.000153,2]
[339501620,1727651441188,-150.112233,0.000153,2]
[339501621,1727651441198,-150.112233,0.000153,2]
[339501622,1727651441208,-150.112233,0.000153,2]
[339501623,1727651441218,-154.833777,0.000153,2]
[339501624,1727651441227,-195.078836,0.000153,2]
[339501625,1727651441238,-195.078836,0.000153,2]
[339501626,1727651441247,-150.112233,0.000153,2]
[339501627,1727651441257,-293.976956,0.000153,2]
[339501628,1727651441267,-293.976956,0.000153,2]
[339501629,1727651441278,-2758.272697,0.000153,2]
[339501630,1727651441289,-2758.272697,0.000153,2]
[339501631,1727651441300,-767.1627563,0.000153,2]
[339501660,1727651446565,-1482.50804,0.0001529,2]
[339501661,1727651446574,-151.0,0.0001529,2]
[339501662,1727651446584,-1482.50804,0.00015295,2]
[339501663,1727651446594,-151.0,0.00015295,2]
[339501664,1727651446604,-1991.1099407,0.000153,2]
[339501665,1727651446613,-2172.85639456,0.000153,2]
[339501687,1727652005966,319.0204031,0.00014105,2]
[339501689,1727652193332,2118.0135036,0.00013803,2]
[339501690,1727652300106,193.5676481,0.00014037,2]
[339501697,1727652589981,183.219905,0.00014084,2]
[339501730,1727652631788,-291.7453574,0.000143,2]
[339501732,1727652631798,-183.219905,0.00014451,2]
[339501733,1727652631808,-559.4347376,0.000145,2]
[339501755,1727652637964,-287.38831,0.000145,2]
[339501756,1727652637976,-750.58908388,0.000145,2]
[339501757,1727652637986,-183.219905,0.00014818,2]
[339501758,1727652637996,-300.0,0.00014869,2]
[339501759,1727652638005,-1999.99999901,0.0001487,2]
[339501760,1727652638015,-153.0,0.000151,2]
[339501761,1727652638024,-307.3608889,0.000151,2]
[339501762,1727652638036,-153.0,0.000151,2]
[339501763,1727652638045,-153.0,0.000151,2]
[339501764,1727652638056,-5070.74419506,0.00015153,2]
[339501765,1727652638065,-987.35818338,0.00015162,2]
[339501857,1727652641531,-3726.61483042,0.00014881,2]
[339501858,1727652641553,-1461.00000922,0.00014881,2]
[339501916,1727652643154,-760.7976278,0.00014881,2]
[339501918,1727652643166,-10.64580864,0.00015162,2]
[339501920,1727652643178,-200.67487485,0.00015162,2]
[339501923,1727652643191,-155.16711461,0.00015162,2]
[339501925,1727652643203,-500.0,0.00015162,2]
[339501927,1727652643215,-500.0,0.00015162,2]
[339501929,1727652643227,-190.66681982,0.00015162,2]
[339501932,1727652643241,-61.49775431,0.00015163,2]
[339502060,1727652646040,-266.4509708,0.00015163,2]
[339502061,1727652646050,-16024.5340867,0.00015163,2]
[339502062,1727652690725,4033.0,0.00014117,2]
[339502066,1727653119535,2158.84,0.00014117,2]
[339502120,1727653832030,-159.8092691,0.00014172,2]
[339502122,1727653832039,-465.00010959,0.00014606,2]
[339502124,1727653832051,-2571.47518027,0.0001487,2]
[339502127,1727653832063,-1000.0,0.0001487,2]
[339502128,1727653832076,-2188.18122135,0.0001487,2]
[339502131,1727653832096,-263.23722699,0.0001487,2]
[339502714,1727653838190,-1045.05041577,0.0001487,2]
[339502717,1727653838201,-228.24824247,0.00014963,2]
[339502719,1727653838212,-208.2131265,0.00015043,2]
[339502721,1727653838223,-300.0,0.00015062,2]
[339502723,1727653838233,-215.98599419,0.00015062,2]
[339502725,1727653838246,-84.01400581,0.00015062,2]
[339502727,1727653838256,-1916.00698919,0.00015063,2]
[339503050,1727653841383,-235.6728979,0.00015063,2]
[339503052,1727653841393,-3351.2714951,0.00015063,2]
[339503054,1727653841403,-153.0,0.000151,2]
[339503056,1727653841412,-153.0,0.000151,2]
[339503058,1727653841421,-279.6601696,0.000151,2]
[339503060,1727653841430,-153.0,0.000151,2]
[339503062,1727653841439,-150.112233,0.000151,2]
[339503064,1727653841449,-153.0,0.000151,2]
[339503066,1727653841458,-150.112233,0.000151,2]
[339503068,1727653841468,-150.112233,0.000151,2]
[339503070,1727653841477,-240.77106398,0.00015122,2]
[339503073,1727653841488,-3627.00451343,0.00015122,2]
[339503075,1727653841499,-10490.99023914,0.00015122,2]
[339503077,1727653841509,-263.33458067,0.00015132,2]
[339503079,1727653841518,-500.0,0.00015132,2]
[339503081,1727653841528,-203.61725447,0.00015132,2]
[339503083,1727653841538,-492.32914423,0.00015132,2]
[339503085,1727653841547,-500.0,0.00015132,2]
[339503087,1727653841557,-11426.2103524,0.00015133,2]
[339503089,1727653841567,-364.84295668,0.00015133,2]
[339503091,1727653841576,-30803.33191845,0.00015133,2]
[339503093,1727653841587,-93177.7077905,0.00015133,2]
[339503095,1727653841598,-14232.6461394,0.00015133,2]
[339503097,1727653841607,-310.52843239,0.00015142,2]
[339503099,1727653841617,-151.0,0.00015143,2]
[339503101,1727653841627,-920.36996,0.00015143,2]
[339503103,1727653841636,-920.36996,0.00015143,2]
[339503105,1727653841645,-151.0,0.00015143,2]
[339503107,1727653841654,-151.0,0.00015143,2]
[339503109,1727653841666,-151.0,0.00015143,2]
[339503111,1727653841676,-151.0,0.00015143,2]
[339503113,1727653841685,-151.0,0.00015143,2]
[339503115,1727653841694,-323.426549,0.00015143,2]
[339503117,1727653841704,-323.426549,0.00015143,2]
[339503119,1727653841713,-186355.415581,0.00015143,2]
[339503121,1727653841722,-19666.29030367,0.00015143,2]
[339503301,1727653856407,158.4,0.00010959,2]
[339503302,1727653867472,792.0,0.00010959,2]
[339503334,1727655034770,-3264.54351685,0.00015011,2]
[339503335,1727655034779,-300.0,0.00015028,2]
[339503336,1727655034789,-300.0,0.00015028,2]
[339503337,1727655034798,-4271.13279705,0.00015029,2]
[339503338,1727655034824,-2237.04545886,0.00015029,2]
[339503339,1727655034834,-5141.01448323,0.00015041,2]
[339503340,1727655034843,-150.112233,0.000151,2]
[339503341,1727655034852,-14927.6794301,0.0001511,2]
[339503342,1727655034861,-364.84295668,0.0001511,2]
[339503343,1727655034871,-310.52843239,0.00015132,2]
[339503344,1727655034880,-500.0,0.00015132,2]
[339503345,1727655034890,-203.61725447,0.00015132,2]
[339503346,1727655034899,-500.0,0.00015132,2]
[339503347,1727655034909,-263.33458067,0.00015132,2]
[339503348,1727655034918,-492.32914423,0.00015132,2]
[339503349,1727655034928,-93177.7077905,0.00015133,2]
[339503350,1727655034938,-10490.99023914,0.00015137,2]
[339503351,1727655034947,-999.10045083,0.00015141,2]
[339503352,1727655034957,-93177.7077905,0.00015143,2]
[339503353,1727655034967,-93177.7077905,0.00015143,2]
[339503354,1727655034976,-157.617237,0.00015143,2]
[339503355,1727655034986,-151.0,0.00015143,2]
[339503356,1727655034995,-151.0,0.00015143,2]
[339503357,1727655035006,-151.0,0.00015143,2]
[339503358,1727655035015,-151.0,0.00015143,2]
[339503359,1727655035025,-151.0,0.00015143,2]
[339503360,1727655035035,-151.0,0.00015143,2]
[339503361,1727655035044,-151.0,0.00015143,2]
[339503362,1727655035054,-151.0,0.00015143,2]
[339503363,1727655035063,-151.0,0.00015143,2]
[339503364,1727655035079,-151.0,0.00015143,2]
[339503365,1727655035088,-154.576744,0.00015143,2]
[339503366,1727655035098,-154.576744,0.00015143,2]
[339503367,1727655035107,-154.576744,0.00015143,2]
[339503368,1727655035118,-154.576744,0.00015143,2]
[339503369,1727655035128,-1620.562649,0.00015143,2]
[339503370,1727655035137,-1620.562649,0.00015143,2]
[339503371,1727655035146,-1620.562649,0.00015143,2]
[339503372,1727655035156,-1620.562649,0.00015143,2]
[339503373,1727655035165,-500.0,0.00015143,2]
[339503374,1727655035174,-160.0,0.00015152,2]
[339503375,1727655035183,-30803.33191845,0.00015153,2]
[339503376,1727655035194,-165.612374,0.00015153,2]
[339503377,1727655035203,-165.612374,0.00015153,2]
[339503378,1727655035212,-151.0,0.00015153,2]
[339503379,1727655035221,-151.0,0.00015153,2]
[339503380,1727655035230,-151.0,0.00015153,2]
[339503381,1727655035239,-151.0,0.00015153,2]
[339503382,1727655035248,-151.0,0.00015153,2]
[339503383,1727655035257,-151.0,0.00015153,2]
[339503384,1727655035266,-151.0,0.00015153,2]
[339503385,1727655035276,-151.0,0.00015153,2]
[339503386,1727655035285,-151.0,0.00015153,2]
[339503387,1727655035294,-151.0,0.00015153,2]
[339503388,1727655035303,-151.0,0.00015153,2]
[339503389,1727655035315,-151.0,0.00015153,2]
[339503390,1727655035325,-151.0,0.00015153,2]
[339503391,1727655035336,-151.0,0.00015153,2]
[339503392,1727655035346,-151.0,0.00015153,2]
[339503393,1727655035355,-151.0,0.00015153,2]
[339503394,1727655035364,-151.0,0.00015153,2]
[339503395,1727655035374,-151.0,0.00015153,2]
[339503396,1727655035383,-151.0,0.00015153,2]
[339503397,1727655035392,-151.0,0.00015153,2]
[339503398,1727655035401,-151.0,0.00015153,2]
[339503399,1727655035410,-151.0,0.00015153,2]
[339503400,1727655035419,-151.0,0.00015153,2]
[339503401,1727655035428,-151.0,0.00015153,2]
[339503402,1727655035437,-151.0,0.00015153,2]
[339503403,1727655035446,-151.0,0.00015153,2]
[339503404,1727655035455,-151.0,0.00015153,2]
[339503405,1727655035464,-151.0,0.00015153,2]
[339503406,1727655035474,-151.0,0.00015153,2]
[339503407,1727655035483,-154.576744,0.00015153,2]
[339503408,1727655035492,-154.576744,0.00015153,2]
[339503409,1727655035501,-1620.562649,0.00015153,2]
[339503410,1727655035510,-1620.562649,0.00015153,2]
[339503411,1727655035519,-191.811272,0.00015153,2]
[339503412,1727655035529,-191.811272,0.00015153,2]
[339503413,1727655035538,-1513.413614,0.00015153,2]
[339503414,1727655035547,-191.811272,0.00015153,2]
[339503415,1727655035558,-1513.413614,0.00015153,2]
[339503416,1727655035569,-191.811272,0.00015153,2]
[339503417,1727655035578,-1513.413614,0.00015153,2]
[339503418,1727655035587,-1513.413614,0.00015153,2]
[339503419,1727655035597,-151.0,0.00015153,2]
[339503420,1727655035607,-151.0,0.00015153,2]
[339503421,1727655035618,-151.0,0.00015153,2]
[339503422,1727655035628,-151.0,0.00015153,2]
[339503423,1727655035638,-387.382323,0.00015153,2]
[339503424,1727655035648,-387.382323,0.00015153,2]
[339503425,1727655035659,-920.36996,0.00015153,2]
[339503426,1727655035668,-920.36996,0.00015153,2]
[339503427,1727655035678,-151.0,0.00015153,2]
[339503428,1727655035687,-151.0,0.00015153,2]
[339503429,1727655035696,-920.36996,0.00015153,2]
[339503430,1727655035705,-920.36996,0.00015153,2]
[339503431,1727655035714,-1009.842054,0.00015153,2]
[339503432,1727655035723,-2580.721855,0.00015153,2]
[339503433,1727655035732,-1009.842054,0.00015153,2]
[339503434,1727655035742,-2580.721855,0.00015153,2]
[339503435,1727655035750,-1009.842054,0.00015153,2]
[339503436,1727655035759,-1009.842054,0.00015153,2]
[339503437,1727655035769,-464.373909,0.00015153,2]
[339503438,1727655035779,-464.373909,0.00015153,2]
[339503439,1727655035788,-464.373909,0.00015153,2]
[339503440,1727655035798,-464.373909,0.00015153,2]
[339503441,1727655035807,-697.390332,0.00015153,2]
[339503442,1727655035816,-697.390332,0.00015153,2]
[339503443,1727655035826,-73.42616276,0.00015153,2]
[339503542,1727655040202,-11960.1770186,0.00015153,2]
[339503543,1727655040212,-220.20262024,0.00015153,2]
[339503544,1727655040221,-293.628783,0.00015153,2]
[339503545,1727655040231,-151.0,0.00015153,2]
[339503546,1727655040241,-828.753603,0.00015153,2]
[339503547,1727655040251,-828.753603,0.00015153,2]
[339503548,1727655040262,-151.0,0.00015153,2]
[339503549,1727655040272,-151.0,0.00015153,2]
[339503550,1727655040282,-151.0,0.00015153,2]
[339503551,1727655040292,-634.147889,0.00015153,2]
[339503552,1727655040302,-195.078836,0.00015153,2]
[339503553,1727655040311,-634.147889,0.00015153,2]
[339503554,1727655040325,-195.078836,0.00015153,2]
[339503555,1727655040335,-469.928056,0.00015153,2]
[339503556,1727655040344,-469.928056,0.00015153,2]
[339503557,1727655040354,-151.0,0.00015153,2]
[339503558,1727655040364,-468.581143,0.00015153,2]
[339503559,1727655040374,-151.0,0.00015153,2]
[339503560,1727655040383,-151.0,0.00015153,2]
[339503561,1727655040394,-151.0,0.00015153,2]
[339503562,1727655040403,-151.0,0.00015153,2]
[339503563,1727655040413,-151.0,0.00015153,2]
[339503564,1727655040423,-468.581143,0.00015153,2]
[339503565,1727655040432,-323.426549,0.00015153,2]
[339503566,1727655040442,-323.426549,0.00015153,2]
[339503567,1727655040451,-151.0,0.00015153,2]
[339503568,1727655040461,-153.308977,0.00015153,2]
[339503569,1727655040471,-343.419279,0.00015153,2]
[339503570,1727655040481,-1961.822573,0.00015153,2]
[339503571,1727655040490,-2662.585514,0.00015153,2]
[339503572,1727655040501,-343.419279,0.00015153,2]
[339503573,1727655040510,-941.24106897,0.00015153,2]
[339503574,1727655040523,-1020.58150403,0.00015153,2]
[339503575,1727655040533,-2662.585514,0.00015153,2]
[339503576,1727655040542,-151.0,0.00015153,2]
[339503577,1727655040552,-151.0,0.00015153,2]
[339503578,1727655040562,-151.0,0.00015153,2]
[339503579,1727655040573,-151.0,0.00015153,2]
[339503580,1727655040583,-151.0,0.00015153,2]
[339503581,1727655040592,-151.0,0.00015153,2]
[339503582,1727655040602,-151.0,0.00015153,2]
[339503583,1727655040612,-151.0,0.00015153,2]
[339503584,1727655040622,-151.0,0.00015153,2]
[339503585,1727655040632,-151.0,0.00015153,2]
[339503586,1727655040641,-151.0,0.00015153,2]
[339503587,1727655040651,-151.0,0.00015153,2]
[339503588,1727655040660,-151.0,0.00015153,2]
[339503589,1727655040670,-151.0,0.00015153,2]
[339503590,1727655040680,-411.275028,0.00015153,2]
[339503591,1727655040690,-411.275028,0.00015153,2]
[339503592,1727655040700,-1547.30138,0.00015153,2]
[339503593,1727655040709,-1547.30138,0.00015153,2]
[339503594,1727655040719,-151.0,0.00015153,2]
[339503595,1727655040728,-1547.30138,0.00015153,2]
[339503596,1727655040738,-1547.30138,0.00015153,2]
[339503597,1727655040749,-1547.30138,0.00015153,2]
[339503598,1727655040758,-1547.30138,0.00015153,2]
[339503599,1727655040767,-1547.30138,0.00015153,2]
[339503600,1727655040776,-1547.30138,0.00015153,2]
[339503601,1727655040786,-151.0,0.00015153,2]
[339503602,1727655040796,-1547.30138,0.00015153,2]
[339503603,1727655040807,-182.268473,0.00015153,2]
[339503604,1727655040817,-182.268473,0.00015153,2]
[339503605,1727655040828,-1547.30138,0.00015153,2]
[339503606,1727655040838,-182.268473,0.00015153,2]
[339503607,1727655040848,-182.268473,0.00015153,2]
[339503608,1727655040857,-1547.30138,0.00015153,2]
[339503609,1727655040867,-182.268473,0.00015153,2]
[339503610,1727655040876,-1547.30138,0.00015153,2]
[339503611,1727655040886,-182.268473,0.00015153,2]
[339503612,1727655040896,-151.0,0.00015153,2]
[339503613,1727655040906,-151.0,0.00015153,2]
[339503614,1727655040916,-151.0,0.00015153,2]
[339503615,1727655040925,-151.0,0.00015153,2]
[339503616,1727655040935,-182.268473,0.00015153,2]
[339503617,1727655040945,-151.0,0.00015153,2]
[339503618,1727655040954,-182.268473,0.00015153,2]
[339503619,1727655040964,-200.300713,0.00015153,2]
[339503620,1727655040974,-182.268473,0.00015153,2]
[339503621,1727655040984,-182.268473,0.00015153,2]
[339503622,1727655040994,-182.268473,0.00015153,2]
[339503623,1727655041004,-182.268473,0.00015153,2]
[339503624,1727655041014,-6814.450557,0.00015153,2]
[339503625,1727655041023,-6814.450557,0.00015153,2]
[339503626,1727655041032,-6814.450557,0.00015153,2]
[339503627,1727655041042,-6814.450557,0.00015153,2]
[339503628,1727655041052,-6814.450557,0.00015153,2]
[339503629,1727655041062,-6814.450557,0.00015153,2]
[339503630,1727655041074,-151.0,0.00015153,2]
[339503631,1727655041084,-151.0,0.00015153,2]
[339503632,1727655041094,-151.0,0.00015153,2]
[339503633,1727655041103,-151.0,0.00015153,2]
[339503634,1727655041113,-6814.450557,0.00015153,2]
[339503635,1727655041123,-6814.450557,0.00015153,2]
[339503636,1727655041132,-6814.450557,0.00015153,2]
[339503637,1727655041142,-6814.450557,0.00015153,2]
[339503638,1727655041152,-6814.450557,0.00015153,2]
[339503639,1727655041161,-6814.450557,0.00015153,2]
[339503640,1727655041171,-1406.265379,0.00015153,2]
[339503641,1727655041181,-1406.265379,0.00015153,2]
[339503642,1727655041193,-1406.265379,0.00015153,2]
[339503643,1727655041202,-1406.265379,0.00015153,2]
[339503644,1727655041212,-1406.265379,0.00015153,2]
[339503645,1727655041221,-1406.265379,0.00015153,2]
[339503646,1727655041231,-1406.265379,0.00015153,2]
[339503647,1727655041241,-1406.265379,0.00015153,2]
[339503648,1727655041251,-1406.265379,0.00015153,2]
[339503649,1727655041261,-1406.265379,0.00015153,2]
[339503650,1727655041271,-1406.265379,0.00015153,2]
[339503651,1727655041282,-1406.265379,0.00015153,2]
[339503652,1727655041292,-167863.9584831,0.00015163,2]
[339503653,1727655041302,-151.0,0.00015163,2]
[339503654,1727655041312,-151.0,0.00015163,2]
[339503655,1727655041326,-151.462988,0.00015163,2]
[339503656,1727655041336,-207.890172,0.00015163,2]
[339503657,1727655041346,-207.890172,0.00015163,2]
[339503658,1727655041356,-154.507638,0.00015163,2]
[339503659,1727655041367,-154.507638,0.00015163,2]
[339503660,1727655041377,-165.612374,0.00015163,2]
[339503661,1727655041387,-165.612374,0.00015163,2]
[339503662,1727655041396,-151.0,0.00015163,2]
[339503663,1727655041406,-176.461399,0.00015163,2]
[339503664,1727655041417,-151.0,0.00015163,2]
[339503665,1727655041426,-151.0,0.00015163,2]
[339503666,1727655041436,-261.221157,0.00015163,2]
[339503667,1727655041445,-151.0,0.00015163,2]
[339503668,1727655041455,-151.0,0.00015163,2]
[339503669,1727655041465,-151.0,0.00015163,2]
[339503670,1727655041475,-151.0,0.00015163,2]
[339503671,1727655041484,-151.0,0.00015163,2]
[339503672,1727655041493,-151.0,0.00015163,2]
[339503673,1727655041504,-151.0,0.00015163,2]
[339503674,1727655041514,-151.0,0.00015163,2]
[339503675,1727655041523,-151.0,0.00015163,2]
[339503676,1727655041533,-151.0,0.00015163,2]
[339503677,1727655041542,-151.0,0.00015163,2]
[339503678,1727655041552,-151.0,0.00015163,2]
[339503679,1727655041562,-151.0,0.00015163,2]
[339503680,1727655041574,-211.131809,0.00015163,2]
[339503681,1727655041583,-151.0,0.00015163,2]
[339503682,1727655041592,-151.0,0.00015163,2]
[339503683,1727655041602,-154.576744,0.00015163,2]
[339503684,1727655041612,-154.576744,0.00015163,2]
[339503685,1727655041621,-154.576744,0.00015163,2]
[339503686,1727655041631,-154.576744,0.00015163,2]
[339503687,1727655041641,-151.0,0.00015163,2]
[339503688,1727655041650,-151.0,0.00015163,2]
[339503689,1727655041660,-220.249443,0.00015163,2]
[339503690,1727655041671,-220.249443,0.00015163,2]
[339503691,1727655041681,-151.0,0.00015163,2]
[339503692,1727655041690,-151.0,0.00015163,2]
[339503693,1727655041699,-151.0,0.00015163,2]
[339503694,1727655041709,-1620.562649,0.00015163,2]
[339503695,1727655041719,-1620.562649,0.00015163,2]
[339503696,1727655041728,-1620.562649,0.00015163,2]
[339503697,1727655041737,-1620.562649,0.00015163,2]
[339503698,1727655041747,-191.811272,0.00015163,2]
[339503699,1727655041757,-1513.413614,0.00015163,2]
[339503700,1727655041767,-191.811272,0.00015163,2]
[339503701,1727655041777,-1513.413614,0.00015163,2]
[339503702,1727655041787,-151.0,0.00015163,2]
[339503703,1727655041796,-151.0,0.00015163,2]
[339503704,1727655041806,-387.382323,0.00015163,2]
[339503705,1727655041816,-920.36996,0.00015163,2]
[339503706,1727655041827,-154.798489,0.00015163,2]
[339503707,1727655041837,-920.36996,0.00015163,2]
[339503708,1727655041847,-1009.842054,0.00015163,2]
[339503709,1727655041858,-1009.842054,0.00015163,2]
[339503710,1727655041867,-2580.721855,0.00015163,2]
[339503711,1727655041877,-2580.721855,0.00015163,2]
[339503712,1727655041887,-1009.842054,0.00015163,2]
[339503713,1727655041897,-1009.842054,0.00015163,2]
[339503714,1727655041907,-464.373909,0.00015163,2]
[339503715,1727655041916,-464.373909,0.00015163,2]
[339503716,1727655041926,-464.373909,0.00015163,2]
[339503717,1727655041936,-464.373909,0.00015163,2]
[339503718,1727655041945,-697.390332,0.00015163,2]
[339503719,1727655041955,-697.390332,0.00015163,2]
[339503720,1727655041965,-697.390332,0.00015163,2]
[339503721,1727655041975,-697.390332,0.00015163,2]
[339503722,1727655041985,-293.628783,0.00015163,2]
[339503723,1727655041994,-293.628783,0.00015163,2]
[339503724,1727655042004,-293.628783,0.00015163,2]
[339503725,1727655042067,-293.628783,0.00015163,2]
[339503726,1727655042078,-152.657196,0.00015163,2]
[339503727,1727655042088,-828.753603,0.00015163,2]
[339503728,1727655042097,-828.753603,0.00015163,2]
[339503729,1727655042106,-828.753603,0.00015163,2]
[339503730,1727655042116,-828.753603,0.00015163,2]
[339503731,1727655042125,-828.753603,0.00015163,2]
[339503732,1727655042134,-828.753603,0.00015163,2]
[339503733,1727655042144,-189.023305,0.00015163,2]
[339503734,1727655042153,-151.0,0.00015163,2]
[339503735,1727655042163,-151.0,0.00015163,2]
[339503736,1727655042172,-151.0,0.00015163,2]
[339503737,1727655042182,-634.147889,0.00015163,2]
[339503738,1727655042194,-634.147889,0.00015163,2]
[339503739,1727655042204,-195.078836,0.00015163,2]
[339503740,1727655042213,-195.078836,0.00015163,2]
[339503741,1727655042222,-195.078836,0.00015163,2]
[339503742,1727655042232,-634.147889,0.00015163,2]
[339503743,1727655042242,-634.147889,0.00015163,2]
[339503744,1727655042251,-195.078836,0.00015163,2]
[339503745,1727655042260,-195.078836,0.00015163,2]
[339503746,1727655042271,-195.078836,0.00015163,2]
[339503747,1727655042281,-469.928056,0.00015163,2]
[339503748,1727655042291,-469.928056,0.00015163,2]
[339503749,1727655042300,-469.928056,0.00015163,2]
[339503750,1727655042310,-469.928056,0.00015163,2]
[339503751,1727655042321,-469.928056,0.00015163,2]
[339503752,1727655042330,-469.928056,0.00015163,2]
[339503753,1727655042340,-151.0,0.00015163,2]
[339503754,1727655042349,-151.0,0.00015163,2]
[339503755,1727655042358,-151.0,0.00015163,2]
[339503756,1727655042367,-2000.0,0.00015163,2]
[339503757,1727655042376,-2000.0,0.00015163,2]
[339503758,1727655042385,-2022.48948,0.00015163,2]
[339503759,1727655042394,-468.581143,0.00015163,2]
[339503760,1727655042404,-468.581143,0.00015163,2]
[339503761,1727655042414,-468.581143,0.00015163,2]
[339503762,1727655042424,-151.0,0.00015163,2]
[339503763,1727655042433,-151.0,0.00015163,2]
[339503764,1727655042443,-468.581143,0.00015163,2]
[339503765,1727655042452,-468.581143,0.00015163,2]
[339503766,1727655042461,-468.581143,0.00015163,2]
[339503767,1727655042470,-323.426549,0.00015163,2]
[339503768,1727655042479,-323.426549,0.00015163,2]
[339503769,1727655042489,-323.426549,0.00015163,2]
[339503770,1727655042498,-323.426549,0.00015163,2]
[339503771,1727655042507,-323.426549,0.00015163,2]
[339503772,1727655042517,-323.426549,0.00015163,2]
[339503773,1727655042527,-343.419279,0.00015163,2]
[339503774,1727655042536,-1961.822573,0.00015163,2]
[339503775,1727655042546,-343.419279,0.00015163,2]
[339503776,1727655042556,-343.419279,0.00015163,2]
[339503777,1727655042565,-1961.822573,0.00015163,2]
[339503778,1727655042577,-2662.585514,0.00015163,2]
[339503779,1727655042587,-1961.822573,0.00015163,2]
[339503780,1727655042596,-2662.585514,0.00015163,2]
[339503781,1727655042606,-343.419279,0.00015163,2]
[339503782,1727655042615,-343.419279,0.00015163,2]
[339503783,1727655042625,-343.419279,0.00015163,2]
[339503784,1727655042634,-1961.822573,0.00015163,2]
[339503785,1727655042643,-2662.585514,0.00015163,2]
[339503786,1727655042653,-423.39010087,0.00015163,2]
[339503914,1727656068852,604.645136,0.00013969,2]
[339503950,1727656232417,-160.453283,0.0001413,2]
[339503952,1727656232426,-160.453283,0.00014166,2]
[339503954,1727656232436,-160.453283,0.00014201,2]
[339503956,1727656232445,-465.00000548,0.0001457,2]
[339503958,1727656232455,-196.8988154,0.0001472,2]
[339503959,1727656232465,-209.3051165,0.000148,2]
[339503960,1727656232474,-212.726169,0.000148,2]
[339503961,1727656232483,-150.0,0.00014824,2]
[339503962,1727656232493,-6026.1303472,0.00014862,2]
[339503963,1727656232510,-300.0,0.00014899,2]
[339503964,1727656232521,-300.0,0.00014899,2]
[339503965,1727656232530,-412.4195684,0.000149,2]
[339503966,1727656232539,-153.0,0.000149,2]
[339503967,1727656232549,-153.0,0.000149,2]
[339503968,1727656232559,-208.878624,0.000149,2]
[339503969,1727656232568,-153.0,0.000149,2]
[339503970,1727656232577,-412.4195684,0.000149,2]
[339503971,1727656232586,-209.3051165,0.000149,2]
[339503972,1727656232596,-153.0,0.000149,2]
[339503973,1727656232605,-412.4195684,0.000149,2]
[339503974,1727656232614,-153.0,0.000149,2]
[339503975,1727656232624,-209.3051165,0.000149,2]
[339503976,1727656232633,-153.0,0.000149,2]
[339503977,1727656232642,-412.4195684,0.000149,2]
[339503978,1727656232652,-153.0,0.000149,2]
[339503979,1727656232661,-153.0,0.000149,2]